fUSD/lending_fUSD_20260409
["ID","MTS","AMOUNT","RATE_DAILY","PERIOD"]
[420168686,1775747438655,-160.0,0.00015288,7]
[420168687,1775747438665,-361.551606,0.00015288,7]
[420168688,1775747438675,-157.53651502,0.00015288,7]
[420168692,1775747438707,-405.56669698,0.00015288,7]
[420168693,1775747438717,-94.43330302,0.00015288,7]
[420168694,1775747438783,-65.56669698,0.00015288,7]
[420168695,1775747438792,-333.269909,0.00015288,7]
[420168696,1775747438803,-506.539819,0.00015288,7]
[420168697,1775747438812,-160.0,0.00015288,7]
[420168698,1775747438823,-1371.112865,0.00015288,7]
[420168699,1775747438833,-2582.225731,0.00015288,7]
[420168700,1775747438842,-900.0,0.000153,5]
[420168701,1775747438852,-8069.39,0.0001531,2]
[420168702,1775747438862,-354.11825532,0.0001532,2]
[420168703,1775747438872,-440.74444003,0.0001532,2]
[420168704,1775747438881,-400.03242769,0.0001532,2]
[420168705,1775747438891,-385.2200237,0.0001532,2]
[420168706,1775747438901,-338.94182142,0.0001532,2]
[420168707,1775747438910,-150.0,0.00015325,2]
[420168708,1775747438920,-242.84459729,0.00015325,2]
[420168709,1775747438929,-150.0,0.00015325,2]
[420168710,1775747438939,-219.0,0.00015325,2]
[420168711,1775747438949,-3522.0,0.00015325,2]
[420168712,1775747438958,-653.83504822,0.00015368,2]
[420168713,1775747438968,-504.58521665,0.00015382,2]
[420168714,1775747438978,-1234.241373,0.00015382,2]
[420168715,1775747438987,-1200.0,0.000154,5]
[420168716,1775747438997,-2000.0,0.00015405,2]
[420168717,1775747439006,-1692.75168,0.0001544,2]
[420168718,1775747439015,-1692.75168,0.0001544,2]
[420168719,1775747439024,-1612.66674481,0.0001545,2]
[420168720,1775747439033,-1692.75168,0.0001545,2]
[420168721,1775747439043,-165.0,0.00015473,2]
[420168722,1775747439052,-500.0,0.00015475,2]
[420168723,1775747439062,-200.0,0.00015475,2]
[420168724,1775747439072,-2846.03,0.00015498,2]
[420168725,1775747439083,-5000.0,0.000155,2]
[420168726,1775747439092,-200.0,0.000155,5]
[420168727,1775747439102,-5086.32647966,0.000155,2]
[420168728,1775747439112,-203.25618178,0.000155,2]
[420168729,1775747439122,-168.0,0.00015565,2]
[420168730,1775747439131,-203.25618177,0.00015567,2]
[420168731,1775747439142,-500.0,0.00015573,2]
[420168732,1775747439151,-500.0,0.00015573,2]
[420168733,1775747439161,-500.0,0.00015573,2]
[420168734,1775747439171,-500.0,0.00015573,2]
[420168735,1775747439181,-500.0,0.00015573,2]
[420168736,1775747439190,-500.0,0.00015573,2]
[420168737,1775747439200,-500.0,0.00015573,2]
[420168738,1775747439209,-500.0,0.00015573,2]
[420168739,1775747439219,-500.0,0.00015573,2]
[420168740,1775747439229,-500.0,0.00015573,2]
[420168741,1775747439239,-500.0,0.00015573,2]
[420168742,1775747439249,-500.0,0.00015573,2]
[420168743,1775747439259,-500.0,0.00015573,2]
[420168744,1775747439268,-500.0,0.00015573,2]
[420168745,1775747439278,-500.15012782,0.00015573,2]
[420168746,1775747439287,-502.50859363,0.00015573,2]
[420168747,1775747439297,-500.0,0.00015573,2]
[420168748,1775747439306,-500.0,0.00015573,2]
[420168749,1775747439316,-500.0,0.00015573,2]
[420168750,1775747439326,-500.0,0.00015573,2]
[420168751,1775747439335,-500.0,0.00015573,2]
[420168752,1775747439344,-500.0,0.00015573,2]
[420168753,1775747439354,-500.0,0.00015573,2]
[420168754,1775747439364,-500.0,0.00015573,2]
[420168755,1775747439374,-500.66821208,0.00015573,2]
[420168756,1775747439384,-500.0,0.00015573,2]
[420168757,1775747439395,-500.0,0.00015573,2]
[420168758,1775747439405,-611.33444375,0.00015573,2]
[420168759,1775747439415,-500.0,0.00015573,2]
[420168760,1775747439426,-501.47777221,0.00015573,2]
[420168761,1775747439435,-500.0,0.00015573,2]
[420168762,1775747439446,-500.0,0.00015573,2]
[420168763,1775747439456,-500.0,0.00015573,2]
[420168764,1775747439465,-500.0,0.00015573,2]
[420168765,1775747439475,-500.0,0.00015573,2]
[420168766,1775747439484,-500.0,0.00015573,2]
[420168767,1775747439495,-500.0,0.00015573,2]
[420168768,1775747439504,-500.0,0.00015573,2]
[420168769,1775747439514,-500.5910353,0.00015573,2]
[420168770,1775747439523,-500.0,0.00015573,2]
[420168771,1775747439532,-500.0,0.00015573,2]
[420168772,1775747439541,-5086.32647966,0.0001558,2]
[420168773,1775747439551,-162.4448075,0.0001559,2]
[420168774,1775747439560,-500.0,0.00015598,2]
[420168775,1775747439570,-500.0,0.00015598,2]
[420168776,1775747439580,-2846.03,0.00015598,2]
[420168777,1775747439590,-500.0,0.00015598,2]
[420168778,1775747439600,-300.0,0.00015599,2]
[420168779,1775747439610,-150.0,0.00015599,2]
[420168780,1775747439620,-500.0,0.00015599,2]
[420168781,1775747439629,-500.0,0.00015599,2]
[420168782,1775747439639,-500.0,0.00015599,2]
[420168783,1775747439648,-500.0,0.00015599,2]
[420168784,1775747439659,-500.0,0.00015599,2]
[420168785,1775747439670,-500.0,0.00015599,2]
[420168786,1775747439680,-500.0,0.00015599,2]
[420168787,1775747439690,-500.0,0.00015599,2]
[420168788,1775747439701,-495.92531369,0.00015599,2]
[420168789,1775747439711,-192.96062462,0.00015599,2]
[420168790,1775747439721,-500.0,0.00015599,2]
[420168791,1775747439731,-500.0,0.00015599,2]
[420168792,1775747439741,-500.0,0.00015599,2]
[420168793,1775747439752,-524.27356847,0.00015599,2]
[420168794,1775747439763,-500.0,0.00015599,2]
[420168795,1775747439773,-500.0,0.00015599,2]
[420168796,1775747439782,-500.0,0.00015599,2]
[420168797,1775747439792,-500.0,0.00015599,2]
[420168798,1775747439801,-455.86591164,0.00015599,2]
[420168799,1775747439810,-500.0,0.00015599,2]
[420168800,1775747439820,-500.0,0.00015599,2]
[420168801,1775747439829,-500.0,0.00015599,2]
[420168802,1775747439839,-230.35379384,0.00015599,2]
[420168803,1775747439848,-500.0,0.00015599,2]
[420168804,1775747439858,-500.0,0.00015599,2]
[420168805,1775747439868,-500.0,0.00015599,2]
[420168806,1775747439877,-500.0,0.00015599,2]
[420168807,1775747439887,-500.0,0.00015599,2]
[420168808,1775747439898,-500.0,0.00015599,2]
[420168809,1775747439908,-500.0,0.00015599,2]
[420168810,1775747439918,-500.0,0.00015599,2]
[420168811,1775747439928,-500.0,0.00015599,2]
[420168812,1775747439937,-500.0,0.00015599,2]
[420168813,1775747439947,-500.0,0.00015599,2]
[420168814,1775747439956,-150.0,0.00015599,2]
[420168815,1775747439966,-2846.03,0.00015599,2]
[420168816,1775747439975,-2846.03,0.00015599,2]
[420168817,1775747439984,-2846.03,0.00015599,2]
[420168818,1775747439993,-2846.03,0.00015599,2]
[420168819,1775747440003,-2846.03,0.00015599,2]
[420168820,1775747440013,-2846.03,0.00015599,2]
[420168821,1775747440023,-500.0,0.00015599,2]
[420168822,1775747440033,-313.31129605,0.00015599,2]
[420168823,1775747440042,-1102.460172,0.00015599,2]
[420168824,1775747440052,-151.0,0.00015599,2]
[420168825,1775747440061,-1102.460172,0.00015599,2]
[420168826,1775747440071,-1102.460172,0.00015599,2]
[420168827,1775747440081,-1102.460172,0.00015599,2]
[420168828,1775747440090,-173.414109,0.00015599,2]
[420168829,1775747440100,-173.414109,0.00015599,2]
[420168830,1775747440110,-293.231283,0.00015599,2]
[420168831,1775747440121,-151.0,0.00015599,2]
[420168832,1775747440130,-173.414109,0.00015599,2]
[420168833,1775747440140,-293.231283,0.00015599,2]
[420168834,1775747440150,-151.0,0.00015599,2]
[420168835,1775747440160,-173.414109,0.00015599,2]
[420168837,1775747440170,-293.231283,0.00015599,2]
[420168839,1775747440179,-151.0,0.00015599,2]
[420168840,1775747440189,-293.231283,0.00015599,2]
[420168841,1775747440198,-192.745963,0.00015599,2]
[420168842,1775747440208,-180.948205,0.00015599,2]
[420168843,1775747440217,-180.948205,0.00015599,2]
[420168844,1775747440227,-180.948205,0.00015599,2]
[420168845,1775747440237,-180.948205,0.00015599,2]
[420168846,1775747440246,-151.0,0.00015599,2]
[420168847,1775747440256,-151.0,0.00015599,2]
[420168848,1775747440265,-285.179058,0.00015599,2]
[420168849,1775747440275,-151.0,0.00015599,2]
[420168850,1775747440285,-156.492866,0.00015599,2]
[420168852,1775747440294,-151.0,0.00015599,2]
[420168853,1775747440304,-151.0,0.00015599,2]
[420168854,1775747440314,-151.0,0.00015599,2]
[420168855,1775747440324,-151.0,0.00015599,2]
[420168856,1775747440333,-151.0,0.00015599,2]
[420168857,1775747440343,-151.0,0.00015599,2]
[420168858,1775747440352,-151.0,0.00015599,2]
[420168859,1775747440362,-151.0,0.00015599,2]
[420168860,1775747440372,-277.123989,0.00015599,2]
[420168861,1775747440382,-151.0,0.00015599,2]
[420168862,1775747440391,-151.0,0.00015599,2]
[420168863,1775747440401,-151.0,0.00015599,2]
[420168864,1775747440410,-151.0,0.00015599,2]
[420168865,1775747440421,-151.0,0.00015599,2]
[420168866,1775747440430,-151.0,0.00015599,2]
[420168867,1775747440439,-151.0,0.00015599,2]
[420168868,1775747440449,-151.0,0.00015599,2]
[420168869,1775747440458,-151.0,0.00015599,2]
[420168870,1775747440467,-151.0,0.00015599,2]
[420168871,1775747440477,-151.0,0.00015599,2]
[420168872,1775747440486,-281.41678084,0.00015599,2]
[420168873,1775747440495,-151.0,0.00015599,2]
[420168874,1775747440505,-151.0,0.00015599,2]
[420168875,1775747440514,-151.0,0.00015599,2]
[420168876,1775747440524,-111.06924092,0.00015599,2]
[420168877,1775747440540,-39.93075908,0.00015599,2]
[420168878,1775747440550,-151.0,0.00015599,2]
[420168879,1775747440559,-151.87415982,0.00015599,2]
[420168880,1775747440568,-151.0,0.00015599,2]
[420168881,1775747440577,-151.0,0.00015599,2]
[420168882,1775747440587,-1632.40551,0.00015599,2]
[420168883,1775747440596,-151.0,0.00015599,2]
[420168884,1775747440605,-1632.40551,0.00015599,2]
[420168885,1775747440615,-151.0,0.00015599,2]
[420168886,1775747440624,-1632.40551,0.00015599,2]
[420168887,1775747440634,-151.0,0.00015599,2]
[420168888,1775747440644,-1632.40551,0.00015599,2]
[420168889,1775747440653,-151.0,0.00015599,2]
[420168890,1775747440663,-772.06,0.00015599,2]
[420168891,1775747440673,-772.06,0.00015599,2]
[420168892,1775747440683,-772.06,0.00015599,2]
[420168893,1775747440692,-772.06,0.00015599,2]
[420168894,1775747440701,-772.06,0.00015599,2]
[420168895,1775747440710,-151.0,0.00015599,2]
[420168896,1775747440720,-151.0,0.00015599,2]
[420168897,1775747440729,-295.693102,0.00015599,2]
[420168898,1775747440738,-151.0,0.00015599,2]
[420168899,1775747440747,-151.0,0.00015599,2]
[420168900,1775747440757,-151.0,0.00015599,2]
[420168901,1775747440766,-240.616486,0.00015599,2]
[420168902,1775747440775,-151.0,0.00015599,2]
[420168903,1775747440785,-500.0,0.00015599,2]
[420168904,1775747440796,-215.430729,0.00015599,2]
[420168905,1775747440805,-215.430729,0.00015599,2]
[420168906,1775747440814,-215.430729,0.00015599,2]
[420168907,1775747440824,-151.0,0.00015599,2]
[420168908,1775747440833,-215.430729,0.00015599,2]
[420168909,1775747440843,-151.0,0.00015599,2]
[420168910,1775747440851,-919.020195,0.00015599,2]
[420168911,1775747440860,-919.020195,0.00015599,2]
[420168912,1775747440870,-919.020195,0.00015599,2]
[420168913,1775747440880,-919.020195,0.00015599,2]
[420168914,1775747440890,-151.0,0.00015599,2]
[420168915,1775747440899,-151.0,0.00015599,2]
[420168916,1775747440908,-151.0,0.00015599,2]
[420168917,1775747440917,-151.0,0.00015599,2]
[420168918,1775747440926,-151.0,0.00015599,2]
[420168919,1775747440936,-151.0,0.00015599,2]
[420168920,1775747440945,-151.0,0.00015599,2]
[420168921,1775747440954,-151.0,0.00015599,2]
[420168922,1775747440964,-151.0,0.00015599,2]
[420168923,1775747440973,-150.0,0.00015599,2]
[420168924,1775747440983,-151.0,0.00015599,2]
[420168925,1775747440992,-500.0,0.00015599,2]
[420168926,1775747441001,-186.97447771,0.00015599,2]
[420168927,1775747441010,-288.64029142,0.00015599,2]
[420168928,1775747441020,-500.0,0.00015599,2]
[420168929,1775747441029,-500.0,0.00015599,2]
[420168930,1775747441038,-500.0,0.00015599,2]
[420168931,1775747441047,-500.0,0.00015599,2]
[420168932,1775747441057,-500.0,0.00015599,2]
[420168933,1775747441067,-500.0,0.00015599,2]
[420168934,1775747441077,-500.0,0.00015599,2]
[420168935,1775747441087,-500.0,0.00015599,2]
[420168936,1775747441096,-500.0,0.00015599,2]
[420168937,1775747441105,-500.0,0.00015599,2]
[420168938,1775747441115,-500.0,0.00015599,2]
[420168939,1775747441124,-500.0,0.00015599,2]
[420168940,1775747441134,-500.0,0.00015599,2]
[420168941,1775747441143,-500.0,0.00015599,2]
[420168942,1775747441153,-500.0,0.00015599,2]
[420168943,1775747441163,-500.0,0.00015599,2]
[420168944,1775747441172,-500.0,0.00015599,2]
[420168945,1775747441181,-500.0,0.00015599,2]
[420168946,1775747441191,-500.0,0.00015599,2]
[420168947,1775747441200,-500.0,0.00015599,2]
[420168948,1775747441209,-500.0,0.00015599,2]
[420168949,1775747441219,-500.0,0.00015599,2]
[420168950,1775747441228,-500.0,0.00015599,2]
[420168951,1775747441237,-500.0,0.00015599,2]
[420168952,1775747441247,-500.0,0.00015599,2]
[420168953,1775747441257,-500.0,0.00015599,2]
[420168954,1775747441267,-500.0,0.00015599,2]
[420168955,1775747441277,-500.0,0.00015599,2]
[420168956,1775747441287,-500.0,0.00015599,2]
[420168957,1775747441296,-500.0,0.00015599,2]
[420168958,1775747441305,-500.0,0.00015599,2]
[420168959,1775747441314,-500.0,0.00015599,2]
[420168960,1775747441324,-500.0,0.00015599,2]
[420168961,1775747441333,-500.0,0.00015599,2]
[420168962,1775747441343,-311.12647129,0.00015599,2]
[420168963,1775747441352,-500.0,0.00015599,2]
[420168964,1775747441362,-500.0,0.00015599,2]
[420168965,1775747441371,-500.0,0.00015599,2]
[420168966,1775747441381,-500.0,0.00015599,2]
[420168967,1775747441390,-500.0,0.00015599,2]
[420168968,1775747441399,-500.0,0.00015599,2]
[420168969,1775747441408,-500.0,0.00015599,2]
[420168970,1775747441418,-500.0,0.00015599,2]
[420168971,1775747441427,-502.216477,0.00015599,2]
[420168972,1775747441437,-523.0,0.000156,5]
[420168973,1775747441446,-652.0,0.000156,5]
[420168974,1775747441455,-6168.58533703,0.000156,2]
[420168975,1775747441468,-838.48977747,0.000156,2]
[420168976,1775747441784,-1274.158435,0.00015131,7]
[420168977,1775747441793,-408.06637245,0.00015294,2]
[420168978,1775747441891,-369.0,0.00013884,2]
[420168979,1775747441903,-866.3457215,0.00013884,2]
[420168980,1775747441915,-608.31297656,0.00013884,2]
[420168987,1775747443411,-1929.34130194,0.00013884,2]
[420168988,1775747443422,-3227.36395116,0.00015294,2]
[420168989,1775747443432,-150.0,0.000153,2]
[420168990,1775747443442,-502.216477,0.00015599,2]
[420168991,1775747443451,-151.0,0.00015599,2]
[420168992,1775747443461,-151.0,0.00015599,2]
[420168993,1775747443471,-502.216477,0.00015599,2]
[420168994,1775747443481,-1820.0,0.00015599,2]
[420168995,1775747443490,-151.0,0.00015599,2]
[420168996,1775747443499,-502.216477,0.00015599,2]
[420168997,1775747443508,-3471.06562453,0.000156,2]
[420169007,1775747446085,-427.67015431,0.00015599,2]
[420169012,1775747493272,11687.64435546,0.000161,120]
[420169016,1775747557607,160.27,8.9e-05,2]
[420169023,1775748335144,-150.0,0.00010599,2]
[420169024,1775748335173,-300.0,0.00010599,2]
[420169025,1775748335202,-1200.0,0.00010599,2]
[420169026,1775748335232,-593.2107711,0.000106,2]
[420169028,1775748442105,-150.0,0.00010599,2]
[420169029,1775748442131,-70.24470608,0.000106,2]
[420169031,1775748467487,-7215.638,0.000105,2]
[420169032,1775748467518,-600.0,0.00011082,2]
[420169033,1775748467542,-600.0,0.00011082,2]
[420169034,1775748467567,-2437.86146288,0.00011135,2]
[420169035,1775748467590,-3641.3346,0.00011205,2]
[420169036,1775748467612,-335.07514376,0.00011229,2]
[420169037,1775748467633,-293.95021677,0.00011235,2]
[420169038,1775748467661,-500.0,0.00011235,2]
[420169039,1775748467686,-500.0,0.00011235,2]
[420169040,1775748467712,-500.0,0.00011235,2]
[420169041,1775748467735,-500.0,0.00011235,2]
[420169042,1775748467758,-500.0,0.00011235,2]
[420169043,1775748467782,-500.0,0.00011235,2]
[420169044,1775748467808,-500.0,0.00011235,2]
[420169045,1775748467836,-500.0,0.00011235,2]
[420169046,1775748467861,-500.0,0.00011235,2]
[420169047,1775748467885,-500.0,0.00011235,2]
[420169048,1775748467911,-500.0,0.00011235,2]
[420169049,1775748467936,-500.0,0.00011235,2]
[420169050,1775748467961,-500.0,0.00011235,2]
[420169051,1775748467987,-500.0,0.00011235,2]
[420169052,1775748468012,-500.0,0.00011235,2]
[420169053,1775748468039,-500.0,0.00011235,2]
[420169054,1775748468066,-500.0,0.00011235,2]
[420169055,1775748468096,-500.0,0.00011235,2]
[420169056,1775748468125,-500.0,0.00011235,2]
[420169057,1775748468154,-500.0,0.00011235,2]
[420169058,1775748468181,-500.0,0.00011235,2]
[420169059,1775748468209,-500.0,0.00011235,2]
[420169060,1775748468237,-500.0,0.00011235,2]
[420169061,1775748468266,-500.0,0.00011235,2]
[420169062,1775748468296,-500.0,0.00011235,2]
[420169063,1775748468325,-500.0,0.00011235,2]
[420169064,1775748468354,-500.0,0.00011235,2]
[420169065,1775748468383,-500.0,0.00011235,2]
[420169066,1775748468411,-500.0,0.00011235,2]
[420169067,1775748468438,-500.0,0.00011235,2]
[420169068,1775748468465,-500.0,0.00011235,2]
[420169069,1775748468493,-500.0,0.00011235,2]
[420169070,1775748468521,-500.0,0.00011235,2]
[420169071,1775748468549,-500.0,0.00011235,2]
[420169072,1775748468575,-500.0,0.00011235,2]
[420169073,1775748468601,-500.0,0.00011235,2]
[420169074,1775748468627,-500.0,0.00011235,2]
[420169075,1775748468655,-500.0,0.00011235,2]
[420169076,1775748468682,-500.0,0.00011235,2]
[420169077,1775748468708,-500.0,0.00011235,2]
[420169078,1775748468734,-500.0,0.00011235,2]
[420169079,1775748468761,-500.0,0.00011235,2]
[420169080,1775748468791,-500.0,0.00011235,2]
[420169081,1775748468821,-500.0,0.00011235,2]
[420169082,1775748468849,-500.0,0.00011235,2]
[420169083,1775748468877,-500.0,0.00011235,2]
[420169084,1775748468906,-500.0,0.00011235,2]
[420169085,1775748468935,-500.0,0.00011235,2]
[420169086,1775748468963,-500.0,0.00011235,2]
[420169087,1775748468992,-500.0,0.00011235,2]
[420169088,1775748469020,-500.0,0.00011235,2]
[420169089,1775748469050,-500.0,0.00011235,2]
[420169090,1775748469077,-500.0,0.00011235,2]
[420169091,1775748469106,-500.0,0.00011235,2]
[420169092,1775748469134,-500.0,0.00011235,2]
[420169093,1775748469162,-500.0,0.00011235,2]
[420169094,1775748469193,-476.47826343,0.00011235,2]
[420169095,1775748469222,-500.0,0.00011235,2]
[420169096,1775748469250,-500.0,0.00011235,2]
[420169097,1775748469277,-500.0,0.00011235,2]
[420169098,1775748469305,-500.0,0.00011235,2]
[420169099,1775748469332,-500.0,0.00011235,2]
[420169100,1775748469361,-500.0,0.00011235,2]
[420169101,1775748469388,-500.0,0.00011235,2]
[420169102,1775748469417,-500.0,0.00011235,2]
[420169103,1775748469444,-500.0,0.00011235,2]
[420169104,1775748469474,-500.0,0.00011235,2]
[420169105,1775748469502,-500.0,0.00011235,2]
[420169106,1775748469530,-500.0,0.00011235,2]
[420169107,1775748469560,-500.0,0.00011235,2]
[420169108,1775748469589,-500.0,0.00011235,2]
[420169109,1775748469617,-500.0,0.00011235,2]
[420169110,1775748469647,-500.0,0.00011235,2]
[420169111,1775748469675,-500.0,0.00011235,2]
[420169112,1775748469704,-500.0,0.00011235,2]
[420169113,1775748469734,-500.0,0.00011235,2]
[420169114,1775748469763,-500.0,0.00011235,2]
[420169115,1775748469791,-500.0,0.00011235,2]
[420169116,1775748469820,-500.0,0.00011235,2]
[420169117,1775748469847,-500.0,0.00011235,2]
[420169118,1775748469876,-499.99999999,0.00011235,2]
[420169119,1775748469904,-500.0,0.00011235,2]
[420169120,1775748469932,-500.0,0.00011235,2]
[420169121,1775748469960,-500.0,0.00011235,2]
[420169122,1775748469990,-319.743,0.00011235,2]
[420169123,1775748470016,-355695.6643,0.00011236,2]
[420169124,1775748470585,-750.60458618,0.00011513,2]
[420169125,1775748470608,-250.0,0.00011659,2]
[420169126,1775748470631,-160.96535874,0.00011659,2]
[420169127,1775748470652,-480.0,0.00011659,2]
[420169128,1775748470675,-600.0,0.0001166,2]
[420169129,1775748470697,-600.0,0.0001166,2]
[420169130,1775748470719,-2437.8614628,0.00011664,2]
[420169131,1775748470740,-164.12,0.00011731,2]
[420169132,1775748470763,-750.60458617,0.00012,2]
[420169133,1775748470785,-2437.8614628,0.00012194,2]
[420169134,1775748470810,-150.0,0.000124,2]
[420169135,1775748470832,-750.60458617,0.00012488,2]
[420169136,1775748470855,-2437.8614628,0.00012723,2]
[420169137,1775748470878,-750.60458617,0.00012975,2]
[420169138,1775748470900,-250.0,0.00013,2]
[420169139,1775748470924,-506.0,0.000131,2]
[420169140,1775748470949,-2437.8614628,0.00013253,2]
[420169141,1775748470972,-721.97,0.00013273,2]
[420169142,1775748470995,-247.33545854,0.00013286,2]
[420169143,1775748483657,353.79,7.008e-05,2]
[420169144,1775748483899,353.79,7.377e-05,2]
[420169145,1775748484072,353.79,7.745e-05,2]
[420169146,1775748484488,353.79,8.114e-05,2]
[420169147,1775748484687,353.79,8.483e-05,2]
[420169148,1775748484912,353.79,8.852e-05,2]
[420169149,1775748537720,-353.79,9.221e-05,2]
[420169150,1775748537743,-282.0,9.221e-05,2]
[420169151,1775748537767,-366.72962348,9.405e-05,2]
[420169152,1775748537791,-353.79,9.59e-05,2]
[420169153,1775748537814,-353.79,9.958e-05,2]
[420169154,1775748537836,-250.0,0.00010143,2]
[420169155,1775748537862,-353.79,0.00010327,2]
[420169156,1775748537887,-48686.11037652,0.000105,2]
[420169157,1775748604023,-500.0,0.00010499,2]
[420169158,1775748604048,-300.0,0.00010499,2]
[420169159,1775748604071,-1200.0,0.00010499,2]
[420169160,1775748604094,-150.0,0.00010499,2]
[420169161,1775748604120,-116114.00522348,0.000105,2]
[420169162,1775748604143,-353.79,0.00010696,2]
[420169163,1775748604166,-353.79,0.00011065,2]
[420169164,1775748604188,-184.13536234,0.00011235,2]
[420169165,1775748604211,-353.79,0.00011434,2]
[420169166,1775748604233,-420.0,0.00011543,2]
[420169167,1775748604256,-250.0,0.0001155,2]
[420169168,1775748604278,-2820.48941418,0.00011654,2]
[420169173,1775748632150,-300.0,0.00010499,2]
[420169174,1775748632161,-11637.58090665,0.000105,2]
[420169175,1775748632249,-51412.47064805,0.000105,2]
[420169176,1775748632398,-24.47163401,0.000105,2]
[420169177,1775748632410,-201441.10553611,0.000105,2]
[420169178,1775748632422,-10157.47205695,0.000105,2]
[420169179,1775748632436,-49968.48787261,0.000105,2]
[420169181,1775748632448,-1254.41808677,0.000105,2]
[420169204,1775748638418,-2923.80028505,0.000105,2]
[420169214,1775748641055,-73708.52820244,0.000105,2]
[420169216,1775748641067,-17856.25,0.000105,2]
[420169220,1775748641089,-7367.63803396,0.000105,2]
[420169223,1775748641202,-124392.44290279,0.000105,2]
[420169224,1775748641214,-1479.03144761,0.000105,2]
[420169225,1775748641270,-1682.22444293,0.000105,2]
[420169284,1775748643560,-31983.39085652,0.000105,2]
[420169285,1775748643572,-13187.08516849,0.000105,2]
[420169286,1775748643639,-3031.75376585,0.000105,2]
[420169292,1775748646199,-45236.61535321,0.000105,2]
[420169293,1775748646209,-235.0,0.00011528,2]
[420169294,1775748646219,-300.0,0.00011543,2]
[420169295,1775748646229,-2240.1566686,0.00011654,2]
[420169296,1775748646621,-353.79,0.00011802,2]
[420169297,1775748646632,-353.79,0.00012171,2]
[420169298,1775748646641,-353.79,0.0001254,2]
[420169299,1775748646651,-587.0,0.00012691,2]
[420169300,1775748646660,-353.79,0.00012909,2]
[420169301,1775748646670,-353.79,0.00013278,2]
[420169302,1775748646680,-3679.59454146,0.00013286,2]
[420169303,1775748646691,-750.60458617,0.00013463,2]
[420169304,1775748646701,-274.11,0.00013509,2]
[420169305,1775748646711,-150.0,0.000136,2]
[420169306,1775748646721,-270.74746472,0.00013626,2]
[420169307,1775748646730,-353.79,0.00013647,2]
[420169308,1775748646740,-615.79425953,0.00013698,2]
[420169309,1775748646749,-500.0,0.00013698,2]
[420169310,1775748646760,-500.0,0.00013698,2]
[420169311,1775748646769,-500.0,0.00013698,2]
[420169312,1775748646779,-500.0,0.00013698,2]
[420169313,1775748646788,-500.0,0.00013698,2]
[420169315,1775748646799,-500.0,0.00013698,2]
[420169316,1775748646808,-1689.56,0.00013698,2]
[420169317,1775748646818,-1494.13,0.000137,2]
[420169318,1775748646827,-1494.13,0.000137,2]
[420169319,1775748646836,-1494.13,0.000137,2]
[420169320,1775748646846,-1494.13,0.000137,2]
[420169321,1775748646855,-1494.13,0.000137,2]
[420169322,1775748646864,-160.0,0.00013733,2]
[420169323,1775748646874,-413.21942127,0.00013739,2]
[420169324,1775748646884,-2400.0,0.00013764,2]
[420169325,1775748646893,-700.0,0.00013764,2]
[420169326,1775748646903,-1218.9307314,0.00013904,2]
[420169327,1775748646912,-913.39291333,0.00013935,2]